[Event "ONJK-B 2019"]
[Site "Borne"]
[Date "2019.08.07"]
[Round "5.16"]
[White "Lauwers, Timo"]
[Black "Kroon, Lindert"]
[Result "1-0"]
[ECO "D02"]
[WhiteElo "1364"]
[BlackElo "1076"]
[Annotator "NA"]
[PlyCount "85"]
[EventDate "2019.08.05"]
[EventType "swiss"]
[EventCountry "NED"]
[SourceTitle "playchess.com"]
[Source "ChessBase"]
[SourceQuality "1"]
[TimeControl "5400+30"]

1. d4 {[%emt 0:00:00]} d5 {[%emt 0:00:00]} 2. Nf3 {[%emt 0:00:00]} Nf6 {[%emt 0:00:00]} 3. Bf4 {[%emt 0:00:00]} Bg4 {[%emt 0:00:00]} 4. Nbd2 {[%emt 0:00:10]} e6 {[%emt 0:00:00]} 5. e3 {[%emt 0:00:17]} Bb4 {[%emt 0:00:10]} 6. c3 {[%emt 0:00:06]} Bd6 {[%emt 0:00:09]} 7. Bg5 {[%emt 0:00:19]} h6 {[%emt 0:00:00]} 8. Bh4 {[%emt 0:00:05]} O-O {[%emt 0:00:00]} 9. Be2 {[%emt 0:00:39]} Be7 {[%emt 0:00:00]} 10. Ne5 {[%emt 0:02:49]} Bxe2 {[%emt 0:00:00]} 11. Qxe2 {[%emt 0:00:16]} Ne4 {[%emt 0:00:05]} 12. Bxe7 {[%emt 0:00:50]} Qxe7 {[%emt 0:00:05]} 13. Nxe4 {[%emt 0:00:23]} dxe4 {[%emt 0:00:04]} 14. Qg4 {[%emt 0:01:32]} Qg5 {[%emt 0:00:18]} 15. Qxe4 {[%emt 0:00:21]} f6 {[%emt 0:00:34]} 16. Qxb7 {[%emt 0:05:41]} Na6 {[%emt 0:00:53]} 17. Qxa6 {[%emt 0:00:14]} fxe5 {[%emt 0:00:06]} 18. Qxe6+ {[%emt 0:00:15]} Rf7 {[%emt 0:00:14]} 19. O-O {[%emt 0:00:55]} Raf8 {[%emt 0:00:36]} 20. Qxe5 {[%emt 0:00:38]} Qg6 {[%emt 0:00:32]} 21. e4 {[%emt 0:01:54]} Rf4 {[%emt 0:04:17]} 22. Qd5+ {[%emt 0:01:46]} Kh8 {[%emt 0:00:28]} 23. e5 {[%emt 0:01:27]} R8f5 {[%emt 0:00:19]} 24. Rae1 {[%emt 0:01:03]} Rg4 {[%emt 0:00:33]} 25. Re3 {[%emt 0:01:19]} c6 {[%emt 0:00:56]} 26. Qd8+ {[%emt 0:01:06]} Kh7 {[%emt 0:00:08]} 27. g3 {[%emt 0:00:34]} Rh4 {[%emt 0:00:12]} 28. Qxh4 {[%emt 0:00:09]} Rh5 {[%emt 0:00:38]} 29. Qe4 {[%emt 0:00:29]} Rf5 {[%emt 0:01:16]} 30. g4 {[%emt 0:00:49]} h5 {[%emt 0:01:04]} 31. Qxf5 {[%emt 0:00:40]} hxg4 {[%emt 0:00:17]} 32. Qxg6+ {[%emt 0:00:09]} Kxg6 {[%emt 0:00:06]} 33. Rg3 {[%emt 0:00:13]} Kh7 {[%emt 0:00:22]} 34. Rxg4 {[%emt 0:00:06]} c5 {[%emt 0:00:04]} 35. f4 {[%emt 0:00:09]} cxd4 {[%emt 0:00:02]} 36. cxd4 {[%emt 0:00:08]} a5 {[%emt 0:00:28]} 37. Rc1 {[%emt 0:00:08]} a4 {[%emt 0:00:11]} 38. Rc7 {[%emt 0:00:06]} a3 {[%emt 0:00:08]} 39. Rcxg7+ {[%emt 0:00:27]} Kh8 {[%emt 0:00:08]} 40. Rg8+ {[%emt 0:00:17]} Kh7 {[%emt 0:00:10]} 41. bxa3 {[%emt 0:00:10]} Kh6 {[%emt 0:00:09]} 42. R8g5 {[%emt 0:00:20]} Kh7 {[%emt 0:00:19]} 43. Rh4# {[%emt 0:00:37]} 1-0

[Event "ONJK-B 2019"]
[Site "Borne"]
[Date "2019.08.08"]
[Round "6.1"]
[White "Baselmans, Daan"]
[Black "Maters, Arthur"]
[Result "1/2-1/2"]
[ECO "B00"]
[WhiteElo "1720"]
[BlackElo "2041"]
[Annotator "NA"]
[PlyCount "47"]
[EventDate "2019.08.05"]
[EventType "swiss"]
[EventCountry "NED"]
[SourceTitle "playchess.com"]
[Source "ChessBase"]
[SourceQuality "1"]
[TimeControl "5400+30"]

1. e4 {[%emt 0:00:00]} b6 {[%emt 0:00:00]} 2. d4 {[%emt 0:00:44]} Bb7 {[%emt 0:00:00]} 3. Nc3 {[%emt 0:00:41]} e6 {[%emt 0:00:00]} 4. Bd3 {[%emt 0:04:10]} Bb4 {[%emt 0:00:00]} 5. Nge2 {[%emt 0:07:35]} c5 {[%emt 0:05:36]} 6. a3 {[%emt 0:08:23]} Bxc3+ {[%emt 0:00:27]} 7. Nxc3 {[%emt 0:00:29]} cxd4 {[%emt 0:03:45]} 8. Nb5 {[%emt 0:00:30]} d6 {[%emt 0:00:05]} 9. Nxd4 {[%emt 0:01:35]} Nf6 {[%emt 0:00:16]} 10. f3 {[%emt 0:02:02]} Nbd7 {[%emt 0:07:23]} 11. Bg5 {[%emt 0:02:48]} a6 {[%emt 0:03:53]} 12. O-O {[%emt 0:03:29]} Qc7 {[%emt 0:03:55]} 13. Kh1 {[%emt 0:02:51]} d5 {[%emt 0:01:43]} 14. exd5 {[%emt 0:02:13]} Nxd5 {[%emt 0:01:04]} 15. Re1 {[%emt 0:00:58]} O-O {[%emt 0:03:22]} 16. c3 {[%emt 0:05:23]} Qc5 {[%emt 0:10:00]} 17. Nb3 {[%emt 0:04:43]} Nxc3 {[%emt 0:10:54]} 18. Nxc5 {[%emt 0:01:41]} Nxd1 {[%emt 0:00:08]} 19. Bxh7+ {[%emt 0:00:11]} Kxh7 {[%emt 0:00:05]} 20. Nxd7 {[%emt 0:00:10]} Nxb2 {[%emt 0:00:15]} 21. Nxf8+ {[%emt 0:02:25]} Rxf8 {[%emt 0:00:06]} 22. Rab1 {[%emt 0:01:32]} Nc4 {[%emt 0:00:08]} 23. Kg1 {[%emt 0:07:24]} Bd5 {[%emt 0:02:14]} 24. Kf2 {[%emt 0:05:10]} 1/2-1/2

[Event "ONJK-B 2019"]
[Site "Borne"]
[Date "2019.08.08"]
[Round "6.2"]
[White "Arnold, Kiri"]
[Black "Mainka, Alwin"]
[Result "1/2-1/2"]
[ECO "B24"]
[WhiteElo "1555"]
[BlackElo "1989"]
[Annotator "NA"]
[PlyCount "68"]
[EventDate "2019.08.05"]
[EventType "swiss"]
[EventCountry "NED"]
[SourceTitle "playchess.com"]
[Source "ChessBase"]
[SourceQuality "1"]
[TimeControl "5400+30"]

1. e4 {[%emt 0:00:00]} c5 {[%emt 0:00:00]} 2. Nc3 {[%emt 0:00:00]} Nc6 {[%emt 0:00:00]} 3. g3 {[%emt 0:00:00]} g6 {[%emt 0:00:00]} 4. Bg2 {[%emt 0:00:00]} Bg7 {[%emt 0:00:00]} 5. d3 {[%emt 0:00:04]} e6 {[%emt 0:00:00]} 6. f4 {[%emt 0:00:21]} Nge7 {[%emt 0:00:05]} 7. Nf3 {[%emt 0:00:13]} d5 {[%emt 0:00:11]} 8. O-O {[%emt 0:02:06]} O-O {[%emt 0:00:05]} 9. e5 {[%emt 0:02:02]} a6 {[%emt 0:00:38]} 10. Kh1 {[%emt 0:03:35]} b5 {[%emt 0:00:47]} 11. Rb1 {[%emt 0:04:14]} Bb7 {[%emt 0:05:24]} 12. d4 {[%emt 0:05:54]} cxd4 {[%emt 0:02:40]} 13. Nxd4 {[%emt 0:00:02]} Nxd4 {[%emt 0:00:11]} 14. Qxd4 {[%emt 0:00:02]} Rc8 {[%emt 0:02:01]} 15. Qf2 {[%emt 0:27:25]} Qc7 {[%emt 0:06:20]} 16. Be3 {[%emt 0:04:05]} Qc6 {[%emt 0:08:42]} 17. a3 {[%emt 0:05:08]} Rfd8 {[%emt 0:04:29]} 18. Rfd1 {[%emt 0:02:57]} Bf8 {[%emt 0:02:22]} 19. g4 {[%emt 0:02:04]} Rd7 {[%emt 0:02:08]} 20. Bd4 {[%emt 0:03:38]} a5 {[%emt 0:01:01]} 21. Bf1 {[%emt 0:01:21]} Ba6 {[%emt 0:00:44]} 22. h4 {[%emt 0:01:13]} b4 {[%emt 0:02:30]} 23. Bxa6 {[%emt 0:00:28]} Qxa6 {[%emt 0:00:10]} 24. Na4 {[%emt 0:00:41]} Rdc7 {[%emt 0:00:24]} 25. Nc5 {[%emt 0:01:48]} Qb5 {[%emt 0:01:04]} 26. a4 {[%emt 0:00:44]} Qe8 {[%emt 0:00:06]} 27. c3 {[%emt 0:00:54]} Nc6 {[%emt 0:00:23]} 28. Na6 {[%emt 0:04:00]} Rb7 {[%emt 0:02:41]} 29. Nc5 {[%emt 0:00:26]} Bxc5 {[%emt 0:00:19]} 30. Bxc5 {[%emt 0:00:01]} Rcb8 {[%emt 0:00:14]} 31. Bd6 {[%emt 0:02:05]} bxc3 {[%emt 0:06:15]} 32. Bxb8 {[%emt 0:01:20]} Qxb8 {[%emt 0:01:54]} 33. Qc2 {[%emt 0:00:04]} Rb4 {[%emt 0:00:02]} 34. bxc3 {[%emt 0:00:03]} Rb7 1/2-1/2

[Event "ONJK-B 2019"]
[Site "Borne"]
[Date "2019.08.08"]
[Round "6.3"]
[White "Albertus, Bram"]
[Black "Rogge, Parcival"]
[Result "0-1"]
[ECO "A25"]
[WhiteElo "1841"]
[BlackElo "1743"]
[Annotator "NA"]
[PlyCount "78"]
[EventDate "2019.08.05"]
[EventType "swiss"]
[EventCountry "NED"]
[SourceTitle "playchess.com"]
[Source "ChessBase"]
[SourceQuality "1"]
[TimeControl "5400+30"]

1. c4 {[%emt 0:00:00]} Nf6 {[%emt 0:00:00]} 2. g3 {[%emt 0:00:00]} e5 {[%emt 0:00:00]} 3. Bg2 {[%emt 0:00:00]} Nc6 {[%emt 0:00:00]} 4. Nc3 {[%emt 0:00:16]} Bc5 {[%emt 0:00:06]} 5. e3 {[%emt 0:00:25]} O-O {[%emt 0:02:45]} 6. Nge2 {[%emt 0:00:23]} d6 {[%emt 0:06:05]} 7. O-O {[%emt 0:00:13]} Bg4 {[%emt 0:03:26]} 8. h3 {[%emt 0:02:01]} Bh5 {[%emt 0:03:09]} 9. g4 {[%emt 0:04:16]} Bg6 {[%emt 0:00:07]} 10. d4 {[%emt 0:01:40]} Bb6 {[%emt 0:02:10]} 11. f4 {[%emt 0:03:54]} h6 {[%emt 0:08:47]} 12. a3 {[%emt 0:04:56]} a6 {[%emt 0:15:25]} 13. b4 {[%emt 0:06:12]} Re8 {[%emt 0:02:57]} 14. c5 {[%emt 0:08:33]} Ba7 {[%emt 0:01:41]} 15. Bxc6 {[%emt 0:01:00]} bxc6 {[%emt 0:00:26]} 16. f5 {[%emt 0:06:43]} Bh7 {[%emt 0:00:14]} 17. Ng3 {[%emt 0:01:10]} Nd5 {[%emt 0:01:10]} 18. Qb3 {[%emt 0:04:45]} Qh4 {[%emt 0:06:51]} 19. Kg2 {[%emt 0:01:17]} h5 {[%emt 0:04:05]} 20. Nxh5 {[%emt 0:30:01]} exd4 {[%emt 0:01:23]} 21. Nxd5 {[%emt 0:01:15]} cxd5 {[%emt 0:00:39]} 22. Qb2 {[%emt 0:02:20]} dxc5 {[%emt 0:00:58]} 23. bxc5 {[%emt 0:00:53]} Bxc5 {[%emt 0:00:14]} 24. exd4 {[%emt 0:00:46]} Bd6 {[%emt 0:00:46]} 25. Bf4 {[%emt 0:01:40]} Bxf5 {[%emt 0:01:45]} 26. Ng3 {[%emt 0:11:59]} Be4+ {[%emt 0:08:43]} 27. Nxe4 {[%emt 0:01:39]} Rxe4 {[%emt 0:00:51]} 28. Bxd6 {[%emt 0:01:26]} cxd6 {[%emt 0:00:19]} 29. Rf2 {[%emt 0:03:58]} Re3 {[%emt 0:04:55]} 30. Rh1 {[%emt 0:00:22]} Qg3+ {[%emt 0:00:48]} 31. Kf1 {[%emt 0:00:07]} Rae8 {[%emt 0:00:55]} 32. Qd2 {[%emt 0:00:48]} Rxa3 {[%emt 0:00:49]} 33. Qb2 {[%emt 0:00:37]} Rae3 {[%emt 0:01:10]} 34. Qd2 {[%emt 0:00:17]} Rb3 {[%emt 0:00:30]} 35. Qc2 {[%emt 0:00:53]} Reb8 {[%emt 0:00:33]} 36. Rd2 {[%emt 0:00:43]} Rb1+ {[%emt 0:00:42]} 37. Rd1 {[%emt 0:00:14]} Qf3+ {[%emt 0:00:18]} 38. Ke1 {[%emt 0:00:23]} Re8+ {[%emt 0:00:26]} 39. Kd2 {[%emt 0:00:16]} Qe3# {[%emt 0:00:09]} 0-1

[Event "ONJK-B 2019"]
[Site "Borne"]
[Date "2019.08.08"]
[Round "6.4"]
[White "Klaren, Oscar"]
[Black "Molanus, Lennart"]
[Result "1/2-1/2"]
[ECO "B70"]
[WhiteElo "1737"]
[BlackElo "1619"]
[Annotator "NA"]
[PlyCount "127"]
[EventDate "2019.08.05"]
[EventType "swiss"]
[EventCountry "NED"]
[SourceTitle "playchess.com"]
[Source "ChessBase"]
[SourceQuality "1"]
[TimeControl "5400+30"]

1. e4 {[%emt 0:00:00]} c5 {[%emt 0:00:00]} 2. Nf3 {[%emt 0:00:00]} d6 {[%emt 0:00:00]} 3. d4 {[%emt 0:00:00]} cxd4 {[%emt 0:00:00]} 4. Nxd4 {[%emt 0:00:00]} Nf6 {[%emt 0:00:00]} 5. Nc3 {[%emt 0:00:00]} g6 {[%emt 0:00:00]} 6. Be2 {[%emt 0:00:00]} Bg7 {[%emt 0:00:10]} 7. O-O {[%emt 0:00:11]} O-O {[%emt 0:00:05]} 8. Re1 {[%emt 0:00:08]} Nc6 {[%emt 0:00:35]} 9. Nb3 {[%emt 0:00:08]} Be6 {[%emt 0:04:53]} 10. Bf1 {[%emt 0:00:30]} Rc8 {[%emt 0:02:05]} 11. Nd5 {[%emt 0:00:44]} Ne5 {[%emt 0:09:27]} 12. f3 {[%emt 0:08:04]} Nxd5 {[%emt 0:08:09]} 13. exd5 {[%emt 0:00:14]} Bf5 {[%emt 0:00:10]} 14. Nd4 {[%emt 0:02:13]} Qb6 {[%emt 0:15:38]} 15. Kh1 {[%emt 0:02:49]} Nd3 {[%emt 0:04:54]} 16. Bxd3 {[%emt 0:00:51]} Bxd3 {[%emt 0:00:41]} 17. Qxd3 {[%emt 0:00:20]} Qxd4 {[%emt 0:00:16]} 18. Qxd4 {[%emt 0:00:13]} Bxd4 {[%emt 0:00:05]} 19. c3 {[%emt 0:00:25]} Bf6 {[%emt 0:00:42]} 20. Bh6 {[%emt 0:01:13]} Rfe8 {[%emt 0:00:22]} 21. Re4 {[%emt 0:00:15]} Rc5 {[%emt 0:02:10]} 22. Rd1 {[%emt 0:03:54]} Rb5 {[%emt 0:07:05]} 23. Re2 {[%emt 0:03:04]} Rc8 {[%emt 0:02:34]} 24. Be3 {[%emt 0:01:19]} Rc4 {[%emt 0:04:30]} 25. a3 {[%emt 0:02:41]} a5 {[%emt 0:01:17]} 26. g4 {[%emt 0:01:45]} g5 {[%emt 0:03:25]} 27. Kg2 {[%emt 0:01:11]} Rb3 {[%emt 0:00:50]} 28. Bc1 {[%emt 0:03:30]} b5 {[%emt 0:00:58]} 29. h4 {[%emt 0:07:47]} h6 {[%emt 0:00:36]} 30. hxg5 {[%emt 0:00:13]} hxg5 {[%emt 0:00:20]} 31. Rdd2 {[%emt 0:09:42]} b4 {[%emt 0:02:30]} 32. axb4 {[%emt 0:01:20]} axb4 {[%emt 0:00:07]} 33. Rc2 {[%emt 0:00:31]} bxc3 {[%emt 0:08:38]} 34. bxc3 {[%emt 0:00:10]} Rcxc3 {[%emt 0:00:41]} 35. Rxc3 {[%emt 0:00:20]} Rxc3 {[%emt 0:00:04]} 36. Bb2 {[%emt 0:00:19]} Rd3 {[%emt 0:00:25]} 37. Bxf6 {[%emt 0:00:28]} exf6 {[%emt 0:01:28]} 38. Re8+ {[%emt 0:00:15]} Kg7 {[%emt 0:00:11]} 39. Rd8 {[%emt 0:00:40]} Rxd5 {[%emt 0:00:14]} 40. Kf2 {[%emt 0:00:11]} Kg6 {[%emt 0:00:55]} 41. Rg8+ {[%emt 0:00:27]} Kh7 {[%emt 0:00:12]} 42. Rf8 {[%emt 0:00:14]} Kg7 {[%emt 0:00:05]} 43. Rd8 {[%emt 0:00:08]} f5 {[%emt 0:01:59]} 44. gxf5 {[%emt 0:00:06]} Kf6 {[%emt 0:00:05]} 45. Rd7 {[%emt 0:00:19]} Rxf5 {[%emt 0:01:45]} 46. Rxd6+ {[%emt 0:00:09]} Ke5 {[%emt 0:00:11]} 47. Ra6 {[%emt 0:00:31]} Rf4 {[%emt 0:01:32]} 48. Ra5+ {[%emt 0:00:17]} Kf6 {[%emt 0:00:06]} 49. Kg3 {[%emt 0:00:06]} Kg6 {[%emt 0:00:40]} 50. Ra6+ {[%emt 0:01:04]} Kh5 {[%emt 0:02:03]} 51. Ra8 {[%emt 0:01:07]} Rf6 {[%emt 0:04:14]} 52. Rh8+ {[%emt 0:00:35]} Rh6 {[%emt 0:00:56]} 53. Rf8 {[%emt 0:00:18]} Kg6 {[%emt 0:00:15]} 54. Ra8 {[%emt 0:00:39]} f5 {[%emt 0:02:16]} 55. Rg8+ {[%emt 0:01:07]} Kf6 {[%emt 0:02:05]} 56. Rf8+ {[%emt 0:00:14]} Ke5 {[%emt 0:01:01]} 57. Rg8 {[%emt 0:00:56]} Kf6 {[%emt 0:01:05]} 58. Rf8+ {[%emt 0:00:06]} Kg6 {[%emt 0:00:08]} 59. Rg8+ {[%emt 0:00:05]} Kh5 {[%emt 0:00:33]} 60. f4 {[%emt 0:01:23]} gxf4+ {[%emt 0:01:31]} 61. Kxf4 {[%emt 0:00:32]} Rg6 {[%emt 0:00:26]} 62. Rh8+ {[%emt 0:00:13]} Rh6 {[%emt 0:00:03]} 63. Rxh6+ {[%emt 0:00:05]} Kxh6 {[%emt 0:00:02]} 64. Kxf5 {[%emt 0:00:07]} 1/2-1/2

[Event "ONJK-B 2019"]
[Site "Borne"]
[Date "2019.08.08"]
[Round "6.5"]
[White "Van Weerden, Jur"]
[Black "Hubers, Daan"]
[Result "0-1"]
[ECO "B00"]
[WhiteElo "1676"]
[BlackElo "1512"]
[Annotator "NA"]
[PlyCount "160"]
[EventDate "2019.08.05"]
[EventType "swiss"]
[EventCountry "NED"]
[SourceTitle "playchess.com"]
[Source "ChessBase"]
[SourceQuality "1"]
[TimeControl "5400+30"]

1. e4 {[%emt 0:00:00]} b6 {[%emt 0:00:00]} 2. Nc3 {[%emt 0:00:00]} Bb7 {[%emt 0:00:00]} 3. Nf3 {[%emt 0:00:03]} e6 {[%emt 0:00:00]} 4. d3 {[%emt 0:00:34]} c5 {[%emt 0:00:38]} 5. Bf4 {[%emt 0:00:20]} a6 {[%emt 0:01:19]} 6. Be2 {[%emt 0:00:48]} Ne7 {[%emt 0:00:28]} 7. Ne5 {[%emt 0:00:46]} Nbc6 {[%emt 0:01:23]} 8. Nc4 {[%emt 0:00:22]} Nc8 {[%emt 0:02:28]} 9. O-O {[%emt 0:02:00]} b5 {[%emt 0:00:50]} 10. Ne3 {[%emt 0:01:31]} Bd6 {[%emt 0:00:41]} 11. Bxd6 {[%emt 0:00:54]} Nxd6 {[%emt 0:00:07]} 12. Bf3 {[%emt 0:00:33]} Nd4 {[%emt 0:00:25]} 13. Nb1 {[%emt 0:00:47]} Qf6 {[%emt 0:05:48]} 14. c3 {[%emt 0:00:30]} Nxf3+ {[%emt 0:00:24]} 15. Qxf3 {[%emt 0:00:05]} Qxf3 {[%emt 0:00:04]} 16. gxf3 {[%emt 0:00:05]} f5 {[%emt 0:01:18]} 17. Nd2 {[%emt 0:00:34]} Kf7 {[%emt 0:02:15]} 18. Nb3 {[%emt 0:01:29]} Rac8 {[%emt 0:01:02]} 19. exf5 {[%emt 0:04:07]} Nxf5 {[%emt 0:00:24]} 20. Nd2 {[%emt 0:00:32]} h5 {[%emt 0:00:37]} 21. Ne4 {[%emt 0:01:48]} Ke7 {[%emt 0:02:44]} 22. Rfe1 {[%emt 0:00:49]} Nh4 {[%emt 0:00:27]} 23. Ng5 {[%emt 0:02:04]} Bxf3 {[%emt 0:01:33]} 24. Nf5+ {[%emt 0:00:21]} Nxf5 {[%emt 0:01:20]} 25. Nxf3 {[%emt 0:00:04]} Kf6 {[%emt 0:00:45]} 26. Rad1 {[%emt 0:01:59]} g5 {[%emt 0:02:32]} 27. d4 {[%emt 0:00:35]} g4 {[%emt 0:01:50]} 28. Ne5 {[%emt 0:00:28]} d6 {[%emt 0:00:54]} 29. Nd7+ {[%emt 0:00:58]} Ke7 {[%emt 0:02:55]} 30. Nb6 {[%emt 0:00:11]} Rc6 {[%emt 0:02:30]} 31. Nd5+ {[%emt 0:00:45]} Kf7 {[%emt 0:00:25]} 32. Nf4 {[%emt 0:01:20]} cxd4 {[%emt 0:02:10]} 33. cxd4 {[%emt 0:01:30]} d5 {[%emt 0:03:48]} 34. Nd3 {[%emt 0:02:05]} Kf6 {[%emt 0:02:16]} 35. Nc5 {[%emt 0:01:15]} Nh4 {[%emt 0:00:23]} 36. Re3 {[%emt 0:02:02]} Rd8 {[%emt 0:02:31]} 37. Ra3 {[%emt 0:01:35]} Ra8 {[%emt 0:01:58]} 38. Rdd3 {[%emt 0:03:41]} b4 {[%emt 0:01:28]} 39. Ra5 {[%emt 0:01:26]} Kf5 {[%emt 0:00:59]} 40. h3 {[%emt 0:00:36]} Rac8 {[%emt 0:02:53]} 41. hxg4+ {[%emt 0:04:27]} hxg4 {[%emt 0:00:02]} 42. Rd1 {[%emt 0:01:20]} Nf3+ {[%emt 0:01:11]} 43. Kf1 {[%emt 0:01:14]} Ra8 {[%emt 0:03:48]} 44. Nd3 {[%emt 0:02:42]} Rc2 {[%emt 0:01:37]} 45. b3 {[%emt 0:02:08]} Rh8 {[%emt 0:00:35]} 46. Kg2 {[%emt 0:01:17]} Rh2+ {[%emt 0:01:42]} 47. Kg3 {[%emt 0:00:30]} Rh3+ {[%emt 0:00:08]} 48. Kg2 {[%emt 0:00:06]} Rh2+ {[%emt 0:01:18]} 49. Kg3 {[%emt 0:00:06]} Rc8 {[%emt 0:08:26]} 50. Nf4 {[%emt 0:02:53]} Rch8 {[%emt 0:00:24]} 51. Rxa6 {[%emt 0:02:52]} Rh1 {[%emt 0:00:10]} 52. Rxh1 {[%emt 0:01:06]} Rxh1 {[%emt 0:00:04]} 53. Ra8 {[%emt 0:04:32]} Rg1+ {[%emt 0:00:07]} 54. Ng2 {[%emt 0:00:26]} Ne1 {[%emt 0:00:22]} 55. Rf8+ {[%emt 0:00:10]} Kg6 {[%emt 0:01:55]} 56. Kf4 {[%emt 0:01:23]} Rxg2 {[%emt 0:00:30]} 57. Ke5 {[%emt 0:00:07]} Nd3+ {[%emt 0:00:38]} 58. Kxe6 {[%emt 0:00:12]} Rxf2 {[%emt 0:01:24]} 59. Rg8+ {[%emt 0:00:04]} Kh5 {[%emt 0:00:11]} 60. Rh8+ {[%emt 0:00:07]} Kg5 {[%emt 0:00:11]} 61. Rg8+ {[%emt 0:00:04]} Kf4 {[%emt 0:00:46]} 62. Kxd5 {[%emt 0:01:02]} g3 {[%emt 0:00:26]} 63. Kc4 {[%emt 0:00:14]} Nb2+ {[%emt 0:01:37]} 64. Kxb4 {[%emt 0:00:24]} Rc2 {[%emt 0:02:19]} 65. d5 {[%emt 0:01:01]} Nd3+ {[%emt 0:00:22]} 66. Ka3 {[%emt 0:00:10]} Rc5 {[%emt 0:00:27]} 67. b4 {[%emt 0:00:37]} Rxd5 {[%emt 0:00:16]} 68. Kb3 {[%emt 0:00:18]} Rg5 {[%emt 0:01:02]} 69. Rf8+ {[%emt 0:00:29]} Ke3 {[%emt 0:00:05]} 70. Kc3 {[%emt 0:00:16]} g2 {[%emt 0:00:42]} 71. Re8+ {[%emt 0:00:21]} Ne5 {[%emt 0:00:06]} 72. b5 {[%emt 0:00:38]} g1=Q {[%emt 0:00:12]} 73. b6 {[%emt 0:00:31]} Qc1+ {[%emt 0:00:18]} 74. Kb4 {[%emt 0:00:11]} Qb2+ {[%emt 0:00:37]} 75. Kc5 {[%emt 0:00:09]} Qd4+ {[%emt 0:00:52]} 76. Kb5 {[%emt 0:00:13]} Qd7+ {[%emt 0:00:08]} 77. Ka6 {[%emt 0:00:27]} Qxe8 {[%emt 0:00:06]} 78. b7 {[%emt 0:00:21]} Qc6+ {[%emt 0:00:29]} 79. Ka7 {[%emt 0:00:19]} Rg7 {[%emt 0:00:12]} 80. a4 {[%emt 0:00:11]} Qxb7# {[%emt 0:00:04]} 0-1

[Event "ONJK-B 2019"]
[Site "Borne"]
[Date "2019.08.08"]
[Round "6.6"]
[White "De Putter, Nina"]
[Black "Winter, Ynse"]
[Result "1-0"]
[ECO "C04"]
[WhiteElo "1631"]
[BlackElo "1021"]
[Annotator "NA"]
[PlyCount "45"]
[EventDate "2019.08.05"]
[EventType "swiss"]
[EventCountry "NED"]
[SourceTitle "playchess.com"]
[Source "ChessBase"]
[SourceQuality "1"]
[TimeControl "5400+30"]

1. e4 {[%emt 0:00:00]} e6 {[%emt 0:00:00]} 2. d4 {[%emt 0:00:00]} d5 {[%emt 0:00:00]} 3. Nd2 {[%emt 0:00:00]} Nf6 {[%emt 0:00:00]} 4. e5 {[%emt 0:00:00]} Nfd7 {[%emt 0:00:00]} 5. Bd3 {[%emt 0:00:00]} Nc6 {[%emt 0:00:21]} 6. c3 {[%emt 0:00:44]} Be7 {[%emt 0:00:41]} 7. Ne2 {[%emt 0:01:15]} Nb6 {[%emt 0:02:20]} 8. O-O {[%emt 0:01:17]} O-O {[%emt 0:04:04]} 9. f4 {[%emt 0:01:27]} f6 {[%emt 0:01:19]} 10. Nf3 {[%emt 0:01:15]} Bd7 {[%emt 0:03:46]} 11. Qe1 {[%emt 0:10:30]} Be8 {[%emt 0:04:54]} 12. Kh1 {[%emt 0:10:27]} Bh5 {[%emt 0:03:55]} 13. Qh4 {[%emt 0:01:20]} Qe8 {[%emt 0:02:55]} 14. g4 {[%emt 0:05:12]} f5 {[%emt 0:00:46]} 15. Qxh5 {[%emt 0:02:04]} g6 {[%emt 0:01:07]} 16. Qh3 {[%emt 0:02:02]} Nd8 {[%emt 0:07:39]} 17. gxf5 {[%emt 0:01:14]} exf5 {[%emt 0:00:23]} 18. Rg1 {[%emt 0:01:27]} Ne6 {[%emt 0:00:44]} 19. Bxf5 {[%emt 0:03:04]} Ng7 {[%emt 0:01:17]} 20. Bd3 {[%emt 0:02:26]} Nd7 {[%emt 0:01:26]} 21. f5 {[%emt 0:07:12]} gxf5 {[%emt 0:03:54]} 22. Bxf5 {[%emt 0:01:09]} h5 {[%emt 0:00:38]} 23. Bxd7 {[%emt 0:01:07]} 1-0

[Event "ONJK-B 2019"]
[Site "Borne"]
[Date "2019.08.08"]
[Round "6.7"]
[White "Ekker, Laurens"]
[Black "Klein, Lucas"]
[Result "1/2-1/2"]
[ECO "B22"]
[WhiteElo "1614"]
[BlackElo "1481"]
[Annotator "NA"]
[PlyCount "58"]
[EventDate "2019.08.05"]
[EventType "swiss"]
[EventCountry "NED"]
[SourceTitle "playchess.com"]
[Source "ChessBase"]
[SourceQuality "1"]
[TimeControl "5400+30"]

1. e4 {[%emt 0:00:00]} c5 {[%emt 0:00:00]} 2. c3 {[%emt 0:00:00]} d5 {[%emt 0:00:33]} 3. exd5 {[%emt 0:00:00]} Qxd5 {[%emt 0:00:25]} 4. d4 {[%emt 0:00:00]} e6 {[%emt 0:02:00]} 5. Nf3 {[%emt 0:00:00]} Nf6 {[%emt 0:02:38]} 6. Be2 {[%emt 0:00:57]} Nc6 {[%emt 0:01:48]} 7. O-O {[%emt 0:00:23]} Be7 {[%emt 0:00:42]} 8. Be3 {[%emt 0:00:26]} b6 {[%emt 0:03:33]} 9. Na3 {[%emt 0:16:51]} O-O {[%emt 0:04:31]} 10. Nb5 {[%emt 0:04:15]} Qd7 {[%emt 0:03:33]} 11. Bf4 {[%emt 0:02:37]} Nd5 {[%emt 0:08:09]} 12. Bg3 {[%emt 0:02:19]} a6 {[%emt 0:01:12]} 13. Na3 {[%emt 0:14:30]} Bd6 {[%emt 0:16:02]} 14. Bxd6 {[%emt 0:07:46]} Qxd6 {[%emt 0:00:38]} 15. Nc4 {[%emt 0:01:01]} Qe7 {[%emt 0:02:09]} 16. Nfe5 {[%emt 0:04:34]} Nxe5 {[%emt 0:01:23]} 17. Nxe5 {[%emt 0:01:21]} Qc7 {[%emt 0:07:27]} 18. Bf3 {[%emt 0:01:36]} Bb7 {[%emt 0:05:40]} 19. Re1 {[%emt 0:00:48]} Rfd8 {[%emt 0:04:06]} 20. dxc5 {[%emt 0:06:21]} bxc5 {[%emt 0:04:41]} 21. Qc2 {[%emt 0:01:14]} Nf4 {[%emt 0:02:30]} 22. b3 {[%emt 0:08:29]} Bxf3 {[%emt 0:01:21]} 23. Nxf3 {[%emt 0:00:17]} c4 {[%emt 0:00:37]} 24. Ne5 {[%emt 0:02:26]} cxb3 {[%emt 0:00:59]} 25. axb3 {[%emt 0:00:36]} Nd5 {[%emt 0:01:34]} 26. c4 {[%emt 0:00:48]} Nb4 {[%emt 0:01:00]} 27. Qe2 {[%emt 0:03:30]} h6 {[%emt 0:02:32]} 28. Rad1 {[%emt 0:02:19]} a5 {[%emt 0:05:06]} 29. Nf3 {[%emt 0:02:20]} Qb6 {[%emt 0:02:02]} 1/2-1/2